[Event "*** Titled Tuesday Blitz"]
[Site "Chess.com"]
[Date "2021.03.02"]
[Round "10"]
[White "SanchezKelvin"]
[Black "arminmusovic"]
[Result "1-0"]
[WhiteElo "2448"]
[BlackElo "2533"]
[TimeControl "180+1"]
[EndTime "11:59:57 PST"]
[Termination "SanchezKelvin won by resignation"]

1. d4 {[%clk 0:03:00.9]} 1... d5 {[%clk 0:02:54.7]} 2. c4 {[%clk 0:02:58.9]}
2... c5 {[%clk 0:02:55.6]} 3. cxd5 {[%clk 0:02:56.2]} 3... e6 {[%clk 0:02:55.3]}
4. dxe6 {[%clk 0:02:55]} 4... Bxe6 {[%clk 0:02:56.2]} 5. Nf3 {[%clk 0:02:54.5]}
5... Nc6 {[%clk 0:02:56.4]} 6. e3 {[%clk 0:02:53.5]} 6... a6 {[%clk 0:02:56.5]}
7. Nc3 {[%clk 0:02:53]} 7... Nf6 {[%clk 0:02:57.1]} 8. Be2 {[%clk 0:02:45.4]}
8... Be7 {[%clk 0:02:57.1]} 9. O-O {[%clk 0:02:44.7]} 9... O-O {[%clk
0:02:57.7]} 10. dxc5 {[%clk 0:02:43.7]} 10... Qa5 {[%clk 0:02:58]} 11. Qa4
{[%clk 0:02:40.1]} 11... Qxc5 {[%clk 0:02:56.5]} 12. e4 {[%clk 0:02:39.8]} 12...
b5 {[%clk 0:02:42.4]} 13. Qc2 {[%clk 0:02:39.1]} 13... Bd6 {[%clk 0:01:57.4]}
14. Be3 {[%clk 0:02:32.2]} 14... Qh5 {[%clk 0:01:56.8]} 15. h3 {[%clk 0:02:30]}
15... Bxh3 {[%clk 0:01:44.7]} 16. Rfd1 {[%clk 0:02:01.1]} 16... Bxg2 {[%clk
0:01:29.9]} 17. Kxg2 {[%clk 0:01:58.9]} 17... Qg4+ {[%clk 0:01:30.1]} 18. Kf1
{[%clk 0:01:58.5]} 18... Qh3+ {[%clk 0:01:28.1]} 19. Ke1 {[%clk 0:01:58]} 19...
Bb4 {[%clk 0:01:14.7]} 20. e5 {[%clk 0:01:30.4]} 20... Rad8 {[%clk 0:00:59.5]}
21. exf6 {[%clk 0:01:15.6]} 21... Qh1+ {[%clk 0:00:57.9]} 22. Bf1 {[%clk
0:01:15.6]} 22... Qxf3 {[%clk 0:00:58]} 23. a3 {[%clk 0:01:07.1]} 23... Ba5
{[%clk 0:00:39.5]} 24. fxg7 {[%clk 0:00:58.1]} 24... Rfe8 {[%clk 0:00:36.7]} 25.
Rxd8 {[%clk 0:00:56.7]} 25... Rxd8 {[%clk 0:00:37.2]} 26. Rd1 {[%clk 0:00:48.5]}
26... Re8 {[%clk 0:00:37.5]} 27. b4 {[%clk 0:00:41.7]} 27... Rxe3+ {[%clk
0:00:30.1]} 28. fxe3 {[%clk 0:00:39.7]} 28... Qxe3+ {[%clk 0:00:31]} 29. Ne2
{[%clk 0:00:39.7]} 29... Nxb4 {[%clk 0:00:21.3]} 30. Qc8+ {[%clk 0:00:30.8]}
30... Kxg7 {[%clk 0:00:21.1]} 31. Qg4+ {[%clk 0:00:31]} 31... Kh8 {[%clk
0:00:11.2]} 32. axb4 {[%clk 0:00:29.4]} 32... Bb6 {[%clk 0:00:10.7]} 33. Qf5
{[%clk 0:00:19]} 33... Qe7 {[%clk 0:00:10.8]} 34. Rd7 {[%clk 0:00:12.1]} 34...
Qxb4+ {[%clk 0:00:10.7]} 35. Kd1 {[%clk 0:00:10.1]} 35... Qb3+ {[%clk
0:00:10.8]} 36. Qc2 {[%clk 0:00:09.7]} 36... Qe6 {[%clk 0:00:10.8]} 37. Qc3+
{[%clk 0:00:09.6]} 37... Kg8 {[%clk 0:00:11.3]} 38. Qg3+ {[%clk 0:00:09.1]}
38... Kf8 {[%clk 0:00:10.8]} 39. Qd6+ {[%clk 0:00:08.4]} 39... Qxd6+ {[%clk
0:00:09.7]} 40. Rxd6 {[%clk 0:00:09.3]} 40... Bf2 {[%clk 0:00:09.9]} 41. Rxa6
{[%clk 0:00:09.8]} 41... b4 {[%clk 0:00:10.2]} 42. Nc1 {[%clk 0:00:09.6]} 42...
Bc5 {[%clk 0:00:09.2]} 43. Nb3 {[%clk 0:00:09.9]} 43... Be7 {[%clk 0:00:08.5]}
44. Bc4 {[%clk 0:00:10.2]} 44... Kg7 {[%clk 0:00:07.9]} 45. Ra7 {[%clk
0:00:10.1]} 45... Kf6 {[%clk 0:00:08.3]} 46. Ke2 {[%clk 0:00:08.9]} 46... h5
{[%clk 0:00:08.4]} 47. Kf3 {[%clk 0:00:09.2]} 47... h4 {[%clk 0:00:08.5]} 48.
Kg4 {[%clk 0:00:09.2]} 48... h3 {[%clk 0:00:08.4]} 49. Kxh3 {[%clk 0:00:09]}
49... Bd6 {[%clk 0:00:09.3]} 50. Kg2 {[%clk 0:00:09.3]} 50... Ke5 {[%clk
0:00:10.1]} 51. Kf3 {[%clk 0:00:09.3]} 51... f5 {[%clk 0:00:10.2]} 52. Bf7
{[%clk 0:00:09.8]} 52... Bf8 {[%clk 0:00:09.8]} 53. Na5 {[%clk 0:00:08.5]} 53...
Bh6 {[%clk 0:00:08.2]} 54. Bb3 {[%clk 0:00:08.2]} 54... Bd2 {[%clk 0:00:08.2]}
55. Nc4+ {[%clk 0:00:07.8]} 55... Kd4 {[%clk 0:00:08]} 56. Nxd2 {[%clk
0:00:08.3]} 56... Kc3 {[%clk 0:00:08.9]} 57. Ke2 {[%clk 0:00:08.5]} 57... f4
{[%clk 0:00:09.5]} 58. Rf7 {[%clk 0:00:08.7]} 58... f3+ {[%clk 0:00:10.4]} 59.
Rxf3+ {[%clk 0:00:09]} 59... Kb2 {[%clk 0:00:11.3]} 60. Bf7 {[%clk 0:00:08.2]}
60... Ka1 {[%clk 0:00:11.6]} 61. Bg6 {[%clk 0:00:06.9]} 61... b3 {[%clk
0:00:10.9]} 62. Nxb3+ {[%clk 0:00:07.4]} 62... Kb2 {[%clk 0:00:11.1]} 63. Rd3
{[%clk 0:00:07.6]} 63... Ka3 {[%clk 0:00:11.3]} 64. Nd4+ {[%clk 0:00:07.1]}
64... Kb4 {[%clk 0:00:12.2]} 65. Ne6 {[%clk 0:00:07.4]} 65... Kc4 {[%clk
0:00:13.1]} 66. Bf7 {[%clk 0:00:07.7]} 66... Kb5 {[%clk 0:00:12.1]} 67. Rd5+
{[%clk 0:00:07.5]} 67... Kb4 {[%clk 0:00:13]} 68. Rc5 {[%clk 0:00:07.5]} 68...
Ka4 {[%clk 0:00:12.8]} 69. Kd3 {[%clk 0:00:08]} 69... Kb4 {[%clk 0:00:13.7]} 70.
Kd4 {[%clk 0:00:08.5]} 70... Kb3 {[%clk 0:00:14.2]} 71. Rc4 {[%clk 0:00:08.9]}
71... Ka3 {[%clk 0:00:14.3]} 72. Kc3 {[%clk 0:00:08.2]} 72... Ka2 {[%clk
0:00:14.7]} 73. Kc2 {[%clk 0:00:08.4]} 73... Ka3 {[%clk 0:00:14.4]} 74. Bg8
{[%clk 0:00:08.5]} 1-0

[Event "*** Titled Tuesday Blitz"]
[Site "Chess.com"]
[Date "2021.03.02"]
[Round "10"]
[White "BanjoKazooieN64"]
[Black "Arvids_Andrejevs"]
[Result "0-1"]
[WhiteElo "2520"]
[BlackElo "2400"]
[TimeControl "180+1"]
[EndTime "11:59:58 PST"]
[Termination "Arvids_Andrejevs won by checkmate"]

1. e4 {[%clk 0:03:00.9]} 1... e5 {[%clk 0:02:52.1]} 2. Nf3 {[%clk 0:03:00.7]}
2... Nc6 {[%clk 0:02:52.1]} 3. Bc4 {[%clk 0:03:01.4]} 3... Nf6 {[%clk
0:02:52.4]} 4. Ng5 {[%clk 0:03:01.9]} 4... d5 {[%clk 0:02:52.4]} 5. exd5 {[%clk
0:03:02.6]} 5... Nd4 {[%clk 0:02:53]} 6. c3 {[%clk 0:03:02.4]} 6... b5 {[%clk
0:02:53.1]} 7. Bf1 {[%clk 0:03:03]} 7... Nxd5 {[%clk 0:02:53]} 8. Nxf7 {[%clk
0:03:03.6]} 8... Kxf7 {[%clk 0:02:50.5]} 9. cxd4 {[%clk 0:03:04.2]} 9... exd4
{[%clk 0:02:46.3]} 10. Qf3+ {[%clk 0:03:04.7]} 10... Nf6 {[%clk 0:02:44.4]} 11.
Bxb5 {[%clk 0:03:04.8]} 11... Qe7+ {[%clk 0:02:06.9]} 12. Qe2 {[%clk 0:03:04.7]}
12... Qxe2+ {[%clk 0:01:35.8]} 13. Bxe2 {[%clk 0:03:03.9]} 13... Bd6 {[%clk
0:01:32.4]} 14. O-O {[%clk 0:03:02.6]} 14... Re8 {[%clk 0:01:32.4]} 15. Bf3
{[%clk 0:03:01]} 15... Rb8 {[%clk 0:01:32.2]} 16. d3 {[%clk 0:02:48.2]} 16...
Ba6 {[%clk 0:01:24.8]} 17. Rd1 {[%clk 0:02:48.1]} 17... Bxd3 {[%clk 0:01:22.6]}
18. Nd2 {[%clk 0:01:52.6]} 18... c5 {[%clk 0:01:14.9]} 19. b3 {[%clk 0:01:41.2]}
19... Be2 {[%clk 0:00:44]} 20. Bxe2 {[%clk 0:00:48.9]} 20... Rxe2 {[%clk
0:00:44.9]} 21. Nc4 {[%clk 0:00:48.5]} 21... Bc7 {[%clk 0:00:44.5]} 22. Ba3
{[%clk 0:00:48.4]} 22... Bb6 {[%clk 0:00:40]} 23. Kf1 {[%clk 0:00:43.5]} 23...
Re6 {[%clk 0:00:36.4]} 24. Re1 {[%clk 0:00:37.5]} 24... Rbe8 {[%clk 0:00:28.5]}
25. Rxe6 {[%clk 0:00:37.2]} 25... Rxe6 {[%clk 0:00:28.7]} 26. Re1 {[%clk
0:00:36.7]} 26... Rxe1+ {[%clk 0:00:26.9]} 27. Kxe1 {[%clk 0:00:37]} 27... Ke6
{[%clk 0:00:27.1]} 28. f3 {[%clk 0:00:31.9]} 28... Kd5 {[%clk 0:00:26.7]} 29.
Ke2 {[%clk 0:00:30.4]} 29... Bc7 {[%clk 0:00:26.6]} 30. g3 {[%clk 0:00:27.8]}
30... h5 {[%clk 0:00:24.4]} 31. Kd3 {[%clk 0:00:21.3]} 31... h4 {[%clk
0:00:23.8]} 32. b4 {[%clk 0:00:19.8]} 32... cxb4 {[%clk 0:00:20.7]} 33. Bxb4
{[%clk 0:00:20]} 33... hxg3 {[%clk 0:00:21.1]} 34. hxg3 {[%clk 0:00:20.8]} 34...
Bxg3 {[%clk 0:00:21.3]} 35. Bf8 {[%clk 0:00:20.7]} 35... Nh5 {[%clk 0:00:20.7]}
36. Nd2 {[%clk 0:00:17.2]} 36... Nf4+ {[%clk 0:00:20.4]} 37. Kc2 {[%clk
0:00:17.4]} 37... g6 {[%clk 0:00:18.6]} 38. Ne4 {[%clk 0:00:17.2]} 38... Bh2
{[%clk 0:00:17.7]} 39. Bh6 {[%clk 0:00:14.4]} 39... Kc4 {[%clk 0:00:15.4]} 40.
Nd6+ {[%clk 0:00:11.2]} 40... Kd5 {[%clk 0:00:15.2]} 41. Nf7 {[%clk 0:00:11.4]}
41... d3+ {[%clk 0:00:14.1]} 42. Kc3 {[%clk 0:00:11.1]} 42... Ke6 {[%clk
0:00:10.6]} 43. Bxf4 {[%clk 0:00:08.3]} 43... Bxf4 {[%clk 0:00:10]} 44. Nd8+
{[%clk 0:00:08.7]} 44... Kd7 {[%clk 0:00:09.4]} 45. Nb7 {[%clk 0:00:09]} 45...
d2 {[%clk 0:00:09.5]} 46. Kc2 {[%clk 0:00:08.1]} 46... Kc6 {[%clk 0:00:09.5]}
47. Nd8+ {[%clk 0:00:08.1]} 47... Kb5 {[%clk 0:00:07.9]} 48. Ne6 {[%clk
0:00:08.1]} 48... g5 {[%clk 0:00:07]} 49. Nxf4 {[%clk 0:00:07.5]} 49... gxf4
{[%clk 0:00:07.9]} 50. Kxd2 {[%clk 0:00:08]} 50... Ka4 {[%clk 0:00:08.4]} 51.
Kc2 {[%clk 0:00:06.8]} 51... Ka3 {[%clk 0:00:08.5]} 52. Kb1 {[%clk 0:00:07.2]}
52... Kb4 {[%clk 0:00:08.1]} 53. Kb2 {[%clk 0:00:07.5]} 53... Kc4 {[%clk
0:00:08.5]} 54. Kc2 {[%clk 0:00:08]} 54... Kd4 {[%clk 0:00:08.5]} 55. Kd2 {[%clk
0:00:08.4]} 55... a6 {[%clk 0:00:08.8]} 56. a3 {[%clk 0:00:08.4]} 56... Kc4
{[%clk 0:00:08.4]} 57. Kc2 {[%clk 0:00:08.2]} 57... a5 {[%clk 0:00:08.9]} 58.
Kb2 {[%clk 0:00:06.6]} 58... Kd3 {[%clk 0:00:08.3]} 59. Kb3 {[%clk 0:00:07.1]}
59... Ke3 {[%clk 0:00:08.8]} 60. Ka4 {[%clk 0:00:08]} 60... Kxf3 {[%clk
0:00:09.5]} 61. Kxa5 {[%clk 0:00:08.9]} 61... Ke3 {[%clk 0:00:08.3]} 62. Kb6
{[%clk 0:00:09.8]} 62... f3 {[%clk 0:00:09.1]} 63. a4 {[%clk 0:00:10.7]} 63...
f2 {[%clk 0:00:09.9]} 64. a5 {[%clk 0:00:11.6]} 64... f1=Q {[%clk 0:00:10.7]}
65. a6 {[%clk 0:00:12.5]} 65... Qb1+ {[%clk 0:00:10.7]} 66. Kc7 {[%clk
0:00:11.3]} 66... Qc2+ {[%clk 0:00:10.8]} 67. Kb8 {[%clk 0:00:11.5]} 67... Qb3+
{[%clk 0:00:11.1]} 68. Kc7 {[%clk 0:00:11.9]} 68... Qc4+ {[%clk 0:00:11.3]} 69.
Kb7 {[%clk 0:00:12.4]} 69... Qb5+ {[%clk 0:00:11.4]} 70. Ka7 {[%clk 0:00:12.7]}
70... Kd4 {[%clk 0:00:10.3]} 71. Ka8 {[%clk 0:00:13.1]} 71... Qxa6+ {[%clk
0:00:10.7]} 72. Kb8 {[%clk 0:00:13.5]} 72... Qd6+ {[%clk 0:00:10.6]} 73. Ka8
{[%clk 0:00:13.8]} 73... Qe7 {[%clk 0:00:10.7]} 74. Kb8 {[%clk 0:00:14.1]} 74...
Kc5 {[%clk 0:00:11.2]} 75. Ka8 {[%clk 0:00:15]} 75... Kb6 {[%clk 0:00:11.2]} 76.
Kb8 {[%clk 0:00:15.4]} 76... Qb7# {[%clk 0:00:11.8]} 0-1

[Event "*** Titled Tuesday Blitz"]
[Site "Chess.com"]
[Date "2021.03.02"]
[Round "10"]
[White "fridaywins"]
[Black "Walter_White_Poland"]
[Result "0-1"]
[WhiteElo "2140"]
[BlackElo "2289"]
[TimeControl "180+1"]
[EndTime "12:00:12 PST"]
[Termination "Walter_White_Poland won by resignation"]

1. e4 {[%clk 0:03:00.9]} 1... e5 {[%clk 0:02:59.4]} 2. Nf3 {[%clk 0:02:55.2]}
2... Nc6 {[%clk 0:02:59.4]} 3. Bb5 {[%clk 0:02:54.7]} 3... a6 {[%clk 0:02:59.5]}
4. Ba4 {[%clk 0:02:54.4]} 4... Nf6 {[%clk 0:02:59.6]} 5. O-O {[%clk 0:02:54.9]}
5... b5 {[%clk 0:02:58.3]} 6. Bb3 {[%clk 0:02:53.3]} 6... Be7 {[%clk 0:02:57.3]}
7. Re1 {[%clk 0:02:52.8]} 7... d6 {[%clk 0:02:56.3]} 8. c3 {[%clk 0:02:52.6]}
8... O-O {[%clk 0:02:53.4]} 9. h3 {[%clk 0:02:53.1]} 9... Na5 {[%clk 0:02:50.8]}
10. Bc2 {[%clk 0:02:50.9]} 10... c5 {[%clk 0:02:50.9]} 11. d4 {[%clk 0:02:51.6]}
11... Nd7 {[%clk 0:02:50.9]} 12. Nbd2 {[%clk 0:02:36]} 12... exd4 {[%clk
0:02:50.4]} 13. cxd4 {[%clk 0:02:35.3]} 13... Nc6 {[%clk 0:02:50.5]} 14. d5
{[%clk 0:02:27.9]} 14... Nce5 {[%clk 0:02:50.3]} 15. a4 {[%clk 0:02:26.7]} 15...
Rb8 {[%clk 0:02:49]} 16. Nxe5 {[%clk 0:02:17.7]} 16... Nxe5 {[%clk 0:02:49]} 17.
f4 {[%clk 0:02:17.5]} 17... Ng6 {[%clk 0:02:48.7]} 18. Nf3 {[%clk 0:02:17.2]}
18... Bh4 {[%clk 0:02:48.1]} 19. Rf1 {[%clk 0:02:11]} 19... Bg3 {[%clk
0:02:47.3]} 20. Ng5 {[%clk 0:01:44.5]} 20... Bxf4 {[%clk 0:02:20.5]} 21. Bxf4
{[%clk 0:01:23.2]} 21... Nxf4 {[%clk 0:02:18.8]} 22. Nxh7 {[%clk 0:01:23.4]}
22... Nxh3+ {[%clk 0:02:14]} 23. gxh3 {[%clk 0:01:18]} 23... Kxh7 {[%clk
0:02:04.8]} 24. e5+ {[%clk 0:00:59.4]} 24... g6 {[%clk 0:01:59.3]} 25. e6 {[%clk
0:00:54.6]} 25... Qg5+ {[%clk 0:01:44.3]} 26. Qg4 {[%clk 0:00:48.7]} 26... Qxg4+
{[%clk 0:01:05.4]} 27. hxg4 {[%clk 0:00:46.4]} 27... f6 {[%clk 0:00:34.2]} 28.
e7 {[%clk 0:00:40.1]} 28... Re8 {[%clk 0:00:31.9]} 29. Rxf6 {[%clk 0:00:39.2]}
29... Rxe7 {[%clk 0:00:30.9]} 30. Kf2 {[%clk 0:00:28]} 30... Kg7 {[%clk
0:00:10.7]} 31. Rxg6+ {[%clk 0:00:20.8]} 31... Kf8 {[%clk 0:00:10.7]} 32. g5
{[%clk 0:00:21.4]} 32... Rf7+ {[%clk 0:00:08.5]} 33. Kg3 {[%clk 0:00:20.8]}
33... Bf5 {[%clk 0:00:07.7]} 34. Bxf5 {[%clk 0:00:19.4]} 34... Rxf5 {[%clk
0:00:08]} 35. Rxd6 {[%clk 0:00:18.8]} 35... bxa4 {[%clk 0:00:08]} 36. Kg4 {[%clk
0:00:18.7]} 36... Rf2 {[%clk 0:00:07.1]} 37. Rh1 {[%clk 0:00:18.2]} 37... Rbxb2
{[%clk 0:00:06.2]} 38. Kh5 {[%clk 0:00:18.2]} 38... Rh2+ {[%clk 0:00:05.4]} 39.
Rxh2 {[%clk 0:00:17.1]} 39... Rxh2+ {[%clk 0:00:06.3]} 40. Kg6 {[%clk
0:00:17.6]} 40... a3 {[%clk 0:00:07]} 41. Rxa6 {[%clk 0:00:17.6]} 41... a2
{[%clk 0:00:07.6]} 42. d6 {[%clk 0:00:17]} 42... Ke8 {[%clk 0:00:08]} 43. Ra8+
{[%clk 0:00:17.5]} 43... Kd7 {[%clk 0:00:08.2]} 44. Kf7 {[%clk 0:00:18.2]} 44...
Kxd6 {[%clk 0:00:08.4]} 45. g6 {[%clk 0:00:18.6]} 45... Kd5 {[%clk 0:00:07.6]}
46. g7 {[%clk 0:00:19.5]} 46... Rf2+ {[%clk 0:00:07.7]} 47. Ke7 {[%clk
0:00:19.7]} 47... Rg2 {[%clk 0:00:07.7]} 48. Rxa2 {[%clk 0:00:18.8]} 48... Rxg7+
{[%clk 0:00:06.3]} 49. Kf6 {[%clk 0:00:19.4]} 49... Rd7 {[%clk 0:00:06.1]} 50.
Rd2+ {[%clk 0:00:19.6]} 50... Kc6 {[%clk 0:00:06]} 51. Rc2 {[%clk 0:00:20.5]}
51... Rd5 {[%clk 0:00:05.6]} 52. Ke6 {[%clk 0:00:20.4]} 52... Rh5 {[%clk
0:00:05.8]} 53. Rc1 {[%clk 0:00:18.3]} 53... Rg5 {[%clk 0:00:05.8]} 54. Kf6
{[%clk 0:00:17.2]} 54... Rh5 {[%clk 0:00:05.5]} 55. Ke6 {[%clk 0:00:18.1]} 55...
Rh3 {[%clk 0:00:05.3]} 56. Kf6 {[%clk 0:00:18.2]} 56... Re3 {[%clk 0:00:05.2]}
57. Kf5 {[%clk 0:00:18]} 57... Kd5 {[%clk 0:00:04.8]} 58. Kf4 {[%clk 0:00:18.9]}
58... Re6 {[%clk 0:00:04.3]} 59. Rd1+ {[%clk 0:00:19.3]} 59... Kc4 {[%clk
0:00:04.8]} 60. Kf5 {[%clk 0:00:20]} 60... Re8 {[%clk 0:00:04]} 61. Rc1+ {[%clk
0:00:20.9]} 61... Kb5 {[%clk 0:00:04.4]} 62. Kf4 {[%clk 0:00:21.6]} 62... Kc6
{[%clk 0:00:05]} 63. Kf3 {[%clk 0:00:22.3]} 63... Kb6 {[%clk 0:00:05.4]} 64. Kf4
{[%clk 0:00:23.2]} 64... Kb5 {[%clk 0:00:05.4]} 65. Kf3 {[%clk 0:00:24.1]} 65...
c4 {[%clk 0:00:05.9]} 66. Kf4 {[%clk 0:00:25]} 66... Kc5 {[%clk 0:00:06.2]} 67.
Rb1 {[%clk 0:00:24.5]} 67... Kd4 {[%clk 0:00:06.4]} 68. Rb7 {[%clk 0:00:24.2]}
68... c3 {[%clk 0:00:06.2]} 69. Rd7+ {[%clk 0:00:24.6]} 69... Kc4 {[%clk
0:00:06.5]} 70. Rc7+ {[%clk 0:00:24.6]} 70... Kb3 {[%clk 0:00:06.8]} 71. Rb7+
{[%clk 0:00:25.3]} 71... Kc2 {[%clk 0:00:07.4]} 72. Kf3 {[%clk 0:00:25.9]} 72...
Kd2 {[%clk 0:00:07.3]} 73. Rd7+ {[%clk 0:00:24.2]} 73... Kc1 {[%clk 0:00:07.4]}
74. Rc7 {[%clk 0:00:24.2]} 74... c2 {[%clk 0:00:07.7]} 75. Kf2 {[%clk
0:00:25.1]} 75... Re4 {[%clk 0:00:07.5]} 76. Kf1 {[%clk 0:00:24.7]} 76... Kd2
{[%clk 0:00:06.9]} 77. Rd7+ {[%clk 0:00:23.7]} 77... Kc3 {[%clk 0:00:07.2]} 78.
Rc7+ {[%clk 0:00:23.9]} 78... Rc4 {[%clk 0:00:07.4]} 79. Rd7 {[%clk 0:00:22.4]}
79... c1=Q+ {[%clk 0:00:07.5]} 80. Ke2 {[%clk 0:00:23.3]} 80... Qf4 {[%clk
0:00:07.5]} 0-1

[Event "*** Titled Tuesday Blitz"]
[Site "Chess.com"]
[Date "2021.03.02"]
[Round "10"]
[White "Vallek86"]
[Black "BigAl"]
[Result "0-1"]
[WhiteElo "2388"]
[BlackElo "2526"]
[TimeControl "180+1"]
[EndTime "12:00:15 PST"]
[Termination "BigAl won on time"]

1. d4 {[%clk 0:02:59.2]} 1... Nf6 {[%clk 0:02:59.2]} 2. Bg5 {[%clk 0:02:59.1]}
2... Ne4 {[%clk 0:02:58.9]} 3. Bh4 {[%clk 0:02:59.2]} 3... d5 {[%clk 0:02:58.9]}
4. f3 {[%clk 0:02:59.3]} 4... Nf6 {[%clk 0:02:59.3]} 5. Nc3 {[%clk 0:02:58.9]}
5... e6 {[%clk 0:02:59.7]} 6. e4 {[%clk 0:02:58.5]} 6... Be7 {[%clk 0:03:00.2]}
7. e5 {[%clk 0:02:56.3]} 7... Nfd7 {[%clk 0:03:00.5]} 8. Bf2 {[%clk 0:02:55.9]}
8... c5 {[%clk 0:02:58.9]} 9. f4 {[%clk 0:02:55.7]} 9... cxd4 {[%clk 0:02:55.6]}
10. Qxd4 {[%clk 0:02:53.1]} 10... Nc6 {[%clk 0:02:56.2]} 11. Qd2 {[%clk
0:02:53.4]} 11... a6 {[%clk 0:02:44.5]} 12. Nf3 {[%clk 0:02:52.9]} 12... b5
{[%clk 0:02:44.3]} 13. Bd3 {[%clk 0:02:49.3]} 13... g6 {[%clk 0:02:42.4]} 14.
O-O {[%clk 0:02:47.1]} 14... Bb7 {[%clk 0:02:41.1]} 15. a4 {[%clk 0:02:35.7]}
15... b4 {[%clk 0:02:38.8]} 16. Ne2 {[%clk 0:02:35.6]} 16... Nc5 {[%clk
0:02:31.9]} 17. Ned4 {[%clk 0:02:26.4]} 17... Ne4 {[%clk 0:02:28.3]} 18. Qe2
{[%clk 0:02:00.6]} 18... O-O {[%clk 0:02:07.1]} 19. Nxc6 {[%clk 0:01:54.4]}
19... Bxc6 {[%clk 0:02:07.3]} 20. Bd4 {[%clk 0:01:53.1]} 20... a5 {[%clk
0:01:58.9]} 21. b3 {[%clk 0:01:44.2]} 21... Bb7 {[%clk 0:01:54.3]} 22. g4 {[%clk
0:01:36.3]} 22... Kh8 {[%clk 0:01:33.6]} 23. Rad1 {[%clk 0:01:35.8]} 23... Qc8
{[%clk 0:01:22.8]} 24. Qe3 {[%clk 0:01:32.9]} 24... Bc5 {[%clk 0:01:09.9]} 25.
Bxe4 {[%clk 0:01:27.6]} 25... Bxd4 {[%clk 0:01:08.4]} 26. Rxd4 {[%clk
0:01:25.4]} 26... dxe4 {[%clk 0:01:08.7]} 27. Ng5 {[%clk 0:01:25.7]} 27... h6
{[%clk 0:00:59.3]} 28. Nxe4 {[%clk 0:01:25.5]} 28... Qxc2 {[%clk 0:00:53.6]} 29.
f5 {[%clk 0:00:52.6]} 29... g5 {[%clk 0:00:53.3]} 30. Qh3 {[%clk 0:00:41.5]}
30... Kg7 {[%clk 0:00:47.4]} 31. f6+ {[%clk 0:00:34.4]} 31... Kh7 {[%clk
0:00:38]} 32. Nxg5+ {[%clk 0:00:34.3]} 32... Kg8 {[%clk 0:00:38.3]} 33. Nf3
{[%clk 0:00:18.6]} 33... Bxf3 {[%clk 0:00:24.3]} 34. Qxf3 {[%clk 0:00:15.1]}
34... Rac8 {[%clk 0:00:20.9]} 35. Qf4 {[%clk 0:00:09.8]} 35... Qg6 {[%clk
0:00:17.3]} 36. Rc4 {[%clk 0:00:09.4]} 36... Rxc4 {[%clk 0:00:15.5]} 37. Qxc4
{[%clk 0:00:10.3]} 37... Rd8 {[%clk 0:00:14.4]} 38. h3 {[%clk 0:00:10.3]} 38...
Kh7 {[%clk 0:00:12.9]} 39. Re1 {[%clk 0:00:08.7]} 39... Rd2 {[%clk 0:00:11.4]}
40. Qe4 {[%clk 0:00:08.5]} 40... Qxe4 {[%clk 0:00:07.4]} 41. Rxe4 {[%clk
0:00:08.8]} 41... Rd3 {[%clk 0:00:08.3]} 42. Rc4 {[%clk 0:00:06.2]} 42... Rxh3
{[%clk 0:00:08]} 43. Rc5 {[%clk 0:00:06.2]} 43... Rxb3 {[%clk 0:00:08.5]} 44.
Kf2 {[%clk 0:00:06.5]} 44... Rb2+ {[%clk 0:00:06.8]} 45. Kf3 {[%clk 0:00:06.6]}
45... Kg6 {[%clk 0:00:07.7]} 46. Rxa5 {[%clk 0:00:06.7]} 46... Rb3+ {[%clk
0:00:08.3]} 47. Kf4 {[%clk 0:00:06.4]} 47... Rb1 {[%clk 0:00:08.2]} 48. Rb5
{[%clk 0:00:06.9]} 48... Rf1+ {[%clk 0:00:08.9]} 49. Kg3 {[%clk 0:00:06.9]}
49... Re1 {[%clk 0:00:07.8]} 50. Rxb4 {[%clk 0:00:07]} 50... Rxe5 {[%clk
0:00:07.9]} 51. Rb5 {[%clk 0:00:07.9]} 51... Re4 {[%clk 0:00:08]} 52. a5 {[%clk
0:00:07.9]} 52... Ra4 {[%clk 0:00:07.7]} 53. Kh4 {[%clk 0:00:06.9]} 53... Kxf6
{[%clk 0:00:08.2]} 54. Rh5 {[%clk 0:00:06.4]} 54... Kg6 {[%clk 0:00:08.3]} 55.
Rb5 {[%clk 0:00:06.9]} 55... Rd4 {[%clk 0:00:08.3]} 56. Kg3 {[%clk 0:00:07.1]}
56... f6 {[%clk 0:00:08.7]} 57. Rb6 {[%clk 0:00:07.1]} 57... e5 {[%clk
0:00:08.9]} 58. a6 {[%clk 0:00:06.9]} 58... Ra4 {[%clk 0:00:09.8]} 59. Kf3
{[%clk 0:00:06.7]} 59... Kg5 {[%clk 0:00:10.2]} 60. Re6 {[%clk 0:00:06.5]} 60...
Ra3+ {[%clk 0:00:10.4]} 61. Ke4 {[%clk 0:00:06.5]} 61... Ra4+ {[%clk 0:00:10.8]}
62. Kd5 {[%clk 0:00:06.6]} 62... Rxg4 {[%clk 0:00:10.5]} 63. a7 {[%clk
0:00:06.1]} 63... Ra4 {[%clk 0:00:10.4]} 64. Re7 {[%clk 0:00:07]} 64... h5
{[%clk 0:00:09.7]} 65. Kc5 {[%clk 0:00:06.2]} 65... f5 {[%clk 0:00:09.8]} 66.
Kb6 {[%clk 0:00:05.3]} 66... e4 {[%clk 0:00:09.6]} 67. Kb7 {[%clk 0:00:05.5]}
67... Kf4 {[%clk 0:00:08.3]} 68. Re6 {[%clk 0:00:04.8]} 68... Rxa7+ {[%clk
0:00:06.3]} 69. Kxa7 {[%clk 0:00:05.7]} 69... Kf3 {[%clk 0:00:06.9]} 70. Kb6
{[%clk 0:00:04.4]} 70... e3 {[%clk 0:00:07.4]} 71. Kc5 {[%clk 0:00:04.5]} 71...
f4 {[%clk 0:00:08.3]} 72. Kd4 {[%clk 0:00:04.5]} 72... h4 {[%clk 0:00:08.9]} 73.
Kd3 {[%clk 0:00:03.7]} 73... h3 {[%clk 0:00:07.8]} 0-1